fUSD/lending_fUSD_20240201
["ID","MTS","AMOUNT","RATE_DAILY","PERIOD"]
[313153429,1706823052040,-153.85,0.000352,3]
[313153430,1706823052049,-153.85,0.000352,3]
[313153431,1706823052059,-153.85,0.000352,3]
[313153432,1706823052069,-1997.98,0.000353,2]
[313153433,1706823052078,-150.0,0.00035328,2]
[313153434,1706823052088,-2047.72134219,0.00035532,2]
[313153435,1706823052097,-153.55670088,0.00035552,2]
[313153436,1706823052107,-500.0,0.00035579,2]
[313153437,1706823052116,-1500.0,0.000356,2]
[313153438,1706823052126,-150.0,0.00035616,2]
[313153439,1706823052135,-300.0,0.00035616,7]
[313153440,1706823052145,-450.0,0.00035616,12]
[313153441,1706823052154,-600.0,0.00035616,17]
[313153442,1706823052163,-490.60286229,0.00035616,22]
[313153443,1706823052173,-500.0,0.00035616,2]
[313153444,1706823052182,-500.0,0.00035616,2]
[313153445,1706823052191,-500.0,0.00035616,2]
[313153446,1706823052200,-500.0,0.00035616,2]
[313153447,1706823052210,-500.0,0.00035616,2]
[313153448,1706823052219,-500.0,0.00035616,2]
[313153449,1706823052228,-500.0,0.00035616,2]
[313153450,1706823052238,-500.0,0.00035616,2]
[313153451,1706823052247,-500.0,0.00035616,2]
[313153452,1706823052257,-500.0,0.00035616,2]
[313153453,1706823052266,-500.0,0.00035616,2]
[313153454,1706823052276,-500.0,0.00035616,2]
[313153455,1706823052288,-500.0,0.00035616,2]
[313153456,1706823052298,-500.0,0.00035616,2]
[313153457,1706823052307,-500.0,0.00035616,2]
[313153458,1706823052316,-500.0,0.00035616,2]
[313153459,1706823052326,-500.0,0.00035616,2]
[313153460,1706823052335,-500.0,0.00035616,2]
[313153461,1706823052344,-500.0,0.00035616,2]
[313153462,1706823052353,-500.0,0.00035616,2]
[313153463,1706823052363,-13606.65,0.00035616,2]
[313153464,1706823052372,-10000.0,0.00035616,2]
[313153465,1706823052381,-150.0,0.00035616,2]
[313153466,1706823052391,-150.0,0.00035616,2]
[313153467,1706823052401,-150.0,0.00035616,2]
[313153468,1706823052411,-155.0,0.00035617,2]
[313153469,1706823052421,-205.0,0.00035653,23]
[313153470,1706823052430,-9380.34,0.000357,7]
[313153471,1706823052439,-9357.88,0.000357,7]
[313153472,1706823052449,-150.0,0.00035905,2]
[313153473,1706823052458,-304.25965269,0.0003591,5]
[313153474,1706823052468,-50000.0,0.00036,6]
[313153475,1706823052477,-298.01245199,0.00036,4]
[313153476,1706823052486,-4470.88747158,0.00036,30]
[313153477,1706823052495,-1625.43540784,0.00036,2]
[313153478,1706823052505,-1625.43540784,0.00036,2]
[313153479,1706823052514,-1625.43540784,0.00036,2]
[313153480,1706823052524,-1625.43540784,0.00036,2]
[313153481,1706823052534,-1625.43540784,0.00036,2]
[313153482,1706823052543,-1625.43540784,0.00036,2]
[313153483,1706823052552,-1625.43540784,0.00036,2]
[313153484,1706823052561,-1625.43540784,0.00036,2]
[313153485,1706823052571,-1625.43540784,0.00036,2]
[313153486,1706823052581,-1625.43540784,0.00036,2]
[313153487,1706823052590,-1625.43540784,0.00036,2]
[313153488,1706823052599,-1625.43540784,0.00036,2]
[313153489,1706823052608,-1625.43540784,0.00036,2]
[313153490,1706823052618,-1625.43540784,0.00036,2]
[313153491,1706823052627,-1625.43540784,0.00036,2]
[313153492,1706823052636,-1625.43540784,0.00036,2]
[313153493,1706823052646,-1625.43540784,0.00036,2]
[313153494,1706823052655,-1625.43540784,0.00036,2]
[313153495,1706823052665,-1625.43540784,0.00036,2]
[313153496,1706823052674,-1625.43540784,0.00036,2]
[313153497,1706823052683,-1625.43540784,0.00036,2]
[313153498,1706823052692,-1625.43540784,0.00036,2]
[313153499,1706823052701,-1625.43540784,0.00036,2]
[313153500,1706823052711,-1625.43540784,0.00036,2]
[313153501,1706823052721,-1625.43540784,0.00036,2]
[313153502,1706823052730,-1625.43540784,0.00036,2]
[313153503,1706823052739,-1625.43540784,0.00036,2]
[313153504,1706823052748,-1625.43540784,0.00036,2]
[313153505,1706823052758,-1625.43540784,0.00036,2]
[313153506,1706823052767,-1625.43540784,0.00036,2]
[313153507,1706823052777,-1625.43540784,0.00036,2]
[313153508,1706823052786,-1625.43540784,0.00036,2]
[313153509,1706823052795,-1625.43540784,0.00036,2]
[313153510,1706823052804,-1625.43540784,0.00036,2]
[313153511,1706823052815,-1625.43540784,0.00036,2]
[313153512,1706823052824,-1625.43540784,0.00036,2]
[313153513,1706823052833,-1625.43540784,0.00036,2]
[313153514,1706823052842,-1625.43540784,0.00036,2]
[313153515,1706823052852,-1625.43540784,0.00036,2]
[313153516,1706823052862,-1625.43540784,0.00036,2]
[313153517,1706823052871,-1625.43540784,0.00036,2]
[313153518,1706823052881,-1625.43540784,0.00036,2]
[313153519,1706823052891,-1625.43540784,0.00036,2]
[313153520,1706823052900,-1625.43540784,0.00036,2]
[313153521,1706823052910,-1625.43540784,0.00036,2]
[313153522,1706823052919,-1625.43540784,0.00036,2]
[313153523,1706823052929,-1625.43540784,0.00036,2]
[313153524,1706823052940,-1625.43540784,0.00036,2]
[313153525,1706823052949,-1625.43540784,0.00036,2]
[313153526,1706823052959,-1625.43540784,0.00036,2]
[313153527,1706823052968,-1625.43540784,0.00036,2]
[313153528,1706823052977,-1625.43540784,0.00036,2]
[313153529,1706823052987,-1625.43540784,0.00036,2]
[313153530,1706823052996,-1625.43540784,0.00036,2]
[313153531,1706823053005,-1625.43540784,0.00036,2]
[313153532,1706823053016,-1625.43540784,0.00036,2]
[313153533,1706823053025,-1625.43540784,0.00036,2]
[313153534,1706823053035,-1625.43540784,0.00036,2]
[313153535,1706823053045,-1625.43540784,0.00036,2]
[313153536,1706823053053,-1625.43540784,0.00036,2]
[313153537,1706823053063,-1625.43540784,0.00036,2]
[313153538,1706823053074,-1625.43540784,0.00036,2]
[313153539,1706823053083,-1625.43540784,0.00036,2]
[313153540,1706823053092,-1625.43540784,0.00036,2]
[313153541,1706823053102,-1625.43540784,0.00036,2]
[313153542,1706823053112,-1625.43540784,0.00036,2]
[313153543,1706823053121,-1625.43540784,0.00036,2]
[313153544,1706823053131,-1625.43540784,0.00036,2]
[313153545,1706823053141,-1625.43540784,0.00036,2]
[313153546,1706823053150,-1625.43540784,0.00036,2]
[313153547,1706823053160,-1625.43540784,0.00036,2]
[313153548,1706823053169,-1625.43540784,0.00036,2]
[313153549,1706823053178,-1625.43540784,0.00036,2]
[313153550,1706823053188,-1625.43540784,0.00036,2]
[313153551,1706823053198,-1625.43540784,0.00036,2]
[313153552,1706823053207,-1625.43540784,0.00036,2]
[313153553,1706823053217,-1625.43540784,0.00036,2]
[313153554,1706823053226,-1625.43540784,0.00036,2]
[313153555,1706823053235,-1625.43540784,0.00036,2]
[313153556,1706823053245,-1625.43540784,0.00036,2]
[313153557,1706823053255,-1625.43540784,0.00036,2]
[313153558,1706823053265,-1625.43540784,0.00036,2]
[313153559,1706823053275,-1625.43540784,0.00036,2]
[313153560,1706823053285,-1625.43540784,0.00036,2]
[313153561,1706823053294,-1625.43540784,0.00036,2]
[313153562,1706823053303,-1625.43540784,0.00036,2]
[313153563,1706823053312,-1625.43540784,0.00036,2]
[313153564,1706823053322,-1625.43540784,0.00036,2]
[313153565,1706823053331,-1625.43540784,0.00036,2]
[313153566,1706823053340,-1625.43540784,0.00036,2]
[313153567,1706823053350,-1625.43540784,0.00036,2]
[313153568,1706823053359,-1625.43540784,0.00036,2]
[313153569,1706823053368,-1625.43540784,0.00036,2]
[313153570,1706823053377,-1625.43540784,0.00036,2]
[313153571,1706823053387,-1625.43540784,0.00036,2]
[313153572,1706823053397,-1625.43540784,0.00036,2]
[313153573,1706823053406,-1625.43540784,0.00036,2]
[313153574,1706823053416,-1625.43540784,0.00036,2]
[313153575,1706823053425,-1625.43540784,0.00036,2]
[313153576,1706823053435,-1625.43540784,0.00036,2]
[313153577,1706823053444,-403.0197137,0.00036,2]
[313153578,1706823053454,-403.0197137,0.00036,2]
[313153579,1706823053463,-403.0197137,0.00036,2]
[313153580,1706823053473,-403.0197137,0.00036,2]
[313153581,1706823053482,-403.0197137,0.00036,2]
[313153582,1706823053491,-403.0197137,0.00036,2]
[313153583,1706823053648,-403.0197137,0.00036,2]
[313153584,1706823053659,-403.0197137,0.00036,2]
[313153585,1706823053668,-403.0197137,0.00036,2]
[313153586,1706823053678,-403.0197137,0.00036,2]
[313153587,1706823053687,-403.0197137,0.00036,2]
[313153588,1706823053696,-403.0197137,0.00036,2]
[313153589,1706823053705,-403.0197137,0.00036,2]
[313153590,1706823053714,-430.94,0.00036001,2]
[313153591,1706823053724,-2916.0,0.00036083,2]
[313153592,1706823053733,-949.0,0.00036083,2]
[313153593,1706823053742,-839.0,0.00036083,2]
[313153594,1706823053751,-1033.0,0.00036083,2]
[313153595,1706823053760,-150.1,0.000361,3]
[313153596,1706823053769,-163.18,0.00036164,2]
[313153597,1706823053778,-300.76,0.00036176,2]
[313153598,1706823053787,-1941.0,0.00036176,2]
[313153599,1706823053797,-191.845,0.00036176,2]
[313153600,1706823053806,-150.0,0.00036176,2]
[313153601,1706823053814,-320.0,0.00036176,2]
[313153602,1706823053824,-210.0,0.00036176,2]
[313153603,1706823053834,-6569.872,0.00036176,2]
[313153604,1706823053843,-6392.709,0.00036176,2]
[313153605,1706823053852,-2281.0,0.00036176,2]
[313153606,1706823053861,-19773.0,0.00036176,2]
[313153607,1706823053870,-1000.0,0.000362,2]
[313153608,1706823053879,-153.55670088,0.00036395,2]
[313153609,1706823053888,-182.0,0.00036425,2]
[313153610,1706823053898,-162.44,0.00036438,2]
[313153611,1706823053907,-611.24,0.00036438,2]
[313153612,1706823053916,-420.25,0.00036438,2]
[313153613,1706823053925,-420.25,0.00036438,2]
[313153614,1706823053936,-420.25,0.00036438,2]
[313153615,1706823053945,-420.25,0.00036438,2]
[313153616,1706823053954,-420.25,0.00036438,2]
[313153617,1706823053964,-420.25,0.00036438,2]
[313153618,1706823053974,-420.25,0.00036438,2]
[313153619,1706823053984,-420.25,0.00036438,2]
[313153620,1706823053993,-415.05,0.00036438,2]
[313153621,1706823054002,-150.0,0.00036482,2]
[313153622,1706823054012,-5323.2005065,0.0003649,10]
[313153623,1706823054022,-22326.69169135,0.000365,7]
[313153624,1706823054032,-1997.98,0.0003653,2]
[313153625,1706823054041,-9357.88,0.000367,7]
[313153626,1706823054050,-7752.43,0.000367,3]
[313153627,1706823054059,-500.0,0.00036789,2]
[313153628,1706823054069,-10000.0,0.00036934,2]
[313153629,1706823054078,-461.0,0.00036948,5]
[313153630,1706823054087,-155.0,0.00036987,2]
[313153631,1706823054097,-100000.0,0.00037,7]
[313153632,1706823054105,-670.80520368,0.00037,7]
[313153633,1706823054115,-4817.50103402,0.00037,7]
[313153634,1706823054124,-1000.0,0.00037,7]
[313153635,1706823054133,-1089.05213596,0.00037,2]
[313153636,1706823054142,-1550.0,0.00037,3]
[313153637,1706823054152,-150.0,0.00037059,2]
[313153638,1706823054161,-2047.72134219,0.00037111,2]
[313153639,1706823054170,-153.55670088,0.00037238,2]
[313153640,1706823054179,-341.49,0.0003726,2]
[313153641,1706823054189,-341.49,0.0003726,2]
[313153642,1706823054198,-341.49,0.0003726,2]
[313153643,1706823054207,-341.49,0.0003726,2]
[313153644,1706823054216,-341.49,0.0003726,2]
[313153645,1706823054226,-341.49,0.0003726,2]
[313153646,1706823054236,-820.06,0.0003726,2]
[313153647,1706823054244,-9380.34,0.000374,7]
[313153648,1706823054253,-1000.0,0.000375,2]
[313153649,1706823054262,-150.0,0.00037635,2]
[313153650,1706823054272,-940.82,0.00037699,2]
[313153651,1706823054282,-1997.98,0.0003776,2]
[313153652,1706823054291,-150.0,0.00037781,2]
[313153653,1706823054302,-150.0,0.00037781,2]
[313153654,1706823054310,-208922.7223111,0.00037782,2]
[313153655,1706823054319,-83387.2794265,0.00037782,2]
[313153656,1706823054329,-28322.636266,0.00037782,2]
[313153657,1706823054337,-10089.5713204,0.00037782,2]
[313153658,1706823054346,-150.0,0.00037807,2]
[313153659,1706823054355,-150.0,0.00037807,2]
[313153660,1706823054364,-1088309.35,0.00037808,2]
[313153661,1706823054374,-150.1,0.000379,2]
[313153662,1706823054383,-615338.520872,0.000379,3]
[313153663,1706823054392,-15195.23125397,0.0003795,15]
[313153664,1706823054401,-7129.88794699,0.0003795,13]
[313153665,1706823054410,-21893.54267255,0.0003795,15]
[313153666,1706823054419,-24052.71066291,0.0003795,15]
[313153667,1706823054428,-5977.49648163,0.0003795,13]
[313153668,1706823054438,-11021.56728993,0.0003795,15]
[313153669,1706823054447,-500.0,0.00037998,2]
[313153670,1706823054455,-100000.0,0.00038,8]
[313153671,1706823054465,-220.81498993,0.00038,4]
[313153672,1706823054475,-9357.88,0.00038,7]
[313153673,1706823054485,-12059.19,0.00038,2]
[313153674,1706823054494,-2492.17322819,0.00038,2]
[313153675,1706823054503,-153.55670088,0.00038082,2]
[313153676,1706823054512,-410.14,0.00038082,2]
[313153677,1706823054521,-341.49,0.00038082,2]
[313153678,1706823054531,-341.49,0.00038082,2]
[313153679,1706823054541,-341.49,0.00038082,2]
[313153680,1706823054550,-341.49,0.00038082,2]
[313153681,1706823054560,-420.25,0.00038082,2]
[313153682,1706823054569,-420.25,0.00038082,2]
[313153683,1706823054578,-420.25,0.00038082,2]
[313153684,1706823054586,-420.25,0.00038082,2]
[313153685,1706823054595,-420.25,0.00038082,2]
[313153686,1706823054605,-839.3,0.00038082,2]
[313153687,1706823054614,-150.0,0.00038212,2]
[313153688,1706823054622,-10886.26,0.00038219,2]
[313153689,1706823054632,-10000.0,0.00038252,2]
[313153690,1706823054644,-430.94,0.00038265,2]
[313153691,1706823054653,-155.0,0.00038357,2]
[313153692,1706823054662,-1000.0,0.00038375,10]
[313153693,1706823054671,-1000.0,0.00038375,10]
[313153694,1706823054680,-184.330753,0.00038526,2]
[313153695,1706823054689,-197.272895,0.00038526,2]
[313153696,1706823054698,-2047.72134219,0.00038689,2]
[313153697,1706823054707,-150.0,0.00038699,2]
[313153698,1706823054716,-150.0,0.00038699,2]
[313153699,1706823054726,-204.64401546,0.000387,7]
[313153700,1706823054735,-9380.34,0.000387,7]
[313153701,1706823054745,-7752.43,0.000387,4]
[313153702,1706823054754,-1000.0,0.00038756,10]
[313153703,1706823054763,-150.0,0.00038789,2]
[313153704,1706823054772,-2793.28,0.000388,3]
[313153705,1706823054781,-2793.28,0.000388,3]
[313153706,1706823054790,-2793.28,0.000388,3]
[313153707,1706823054799,-2793.28,0.000388,3]
[313153708,1706823054808,-2793.28,0.000388,3]
[313153709,1706823054817,-2793.28,0.000388,3]
[313153710,1706823054827,-2793.28,0.000388,3]
[313153711,1706823054836,-2793.28,0.000388,3]
[313153712,1706823054845,-2793.28,0.000388,3]
[313153713,1706823054854,-2793.28,0.000388,3]
[313153714,1706823054863,-2793.28,0.000388,3]
[313153715,1706823054873,-2793.28,0.000388,3]
[313153716,1706823054882,-2793.28,0.000388,3]
[313153717,1706823054893,-2793.28,0.000388,3]
[313153718,1706823054902,-2793.28,0.000388,3]
[313153719,1706823054911,-2793.28,0.000388,3]
[313153720,1706823054921,-2793.28,0.000388,3]
[313153721,1706823054931,-2793.28,0.000388,3]
[313153722,1706823054942,-2793.28,0.000388,3]
[313153723,1706823054951,-2793.28,0.000388,3]
[313153724,1706823054960,-153.85,0.000388,3]
[313153725,1706823054970,-153.85,0.000388,3]
[313153726,1706823054979,-153.85,0.000388,3]
[313153727,1706823054988,-153.85,0.000388,3]
[313153728,1706823054998,-153.85,0.000388,3]
[313153729,1706823055007,-153.85,0.000388,3]
[313153730,1706823055018,-153.85,0.000388,3]
[313153731,1706823055028,-153.85,0.000388,3]
[313153732,1706823055037,-23558.23309115,0.0003888,2]
[313153733,1706823055047,-23558.23309115,0.0003888,2]
[313153734,1706823055056,-23558.23309115,0.0003888,2]
[313153735,1706823055065,-23558.23309115,0.0003888,2]
[313153736,1706823055075,-23558.23309115,0.0003888,2]
[313153737,1706823055084,-23558.23309115,0.0003888,2]
[313153738,1706823055093,-9357.88,0.000389,7]
[313153739,1706823055102,-1000.0,0.000389,2]
[313153740,1706823055111,-416.91,0.00038904,2]
[313153741,1706823055120,-416.91,0.00038904,2]
[313153742,1706823055130,-416.91,0.00038904,2]
[313153743,1706823055139,-416.91,0.00038904,2]
[313153744,1706823055150,-416.91,0.00038904,2]
[313153745,1706823055159,-153.55670088,0.00038925,2]
[313153746,1706823055168,-282.85165656,0.0003898,2]
[313153747,1706823055178,-3993.159999,0.0003899,2]
[313153748,1706823055188,-100000.0,0.00039,9]
[313153749,1706823055197,-634.97954655,0.00039,4]
[313153750,1706823055207,-622.13966153,0.00039,4]
[313153751,1706823055217,-1432.91116415,0.00039,2]
[313153752,1706823055226,-979.21252284,0.00039,4]
[313153753,1706823055236,-296.68684898,0.00039,5]
[313153754,1706823055246,-11775.39200776,0.00039,2]
[313153755,1706823055256,-12060.2,0.00039,2]
[313153756,1706823055265,-3000.0,0.00039,24]
[313153757,1706823055274,-1600.0,0.00039,3]
[313153758,1706823055284,-3000.0,0.0003901,24]
[313153759,1706823055293,-5528.083231,0.0003902,24]
[313153760,1706823055303,-2916.0,0.00039083,2]
[313153761,1706823055313,-279.939,0.00039083,2]
[313153762,1706823055322,-839.0,0.00039083,2]
[313153763,1706823055331,-1033.0,0.00039083,2]
[313153764,1706823055340,-205.0,0.00039131,28]
[313153765,1706823055349,-1941.0,0.00039176,2]
[313153766,1706823055359,-150.0,0.00039176,2]
[313153767,1706823055367,-320.0,0.00039176,2]
[313153768,1706823055376,-210.0,0.00039176,2]
[313153769,1706823055385,-2281.0,0.00039176,2]
[313153770,1706823055396,-19773.0,0.00039176,2]
[313153771,1706823055404,-500.0,0.00039208,2]
[313153772,1706823055413,-1000.0,0.0003926,2]
[313153773,1706823055422,-150.0,0.00039366,2]
[313153774,1706823055431,-75000.0,0.00039425,15]
[313153775,1706823055440,-16195.11795681,0.000395,2]
[313153776,1706823055449,-10000.0,0.0003957,2]
[313153777,1706823055458,-416.91,0.00039726,2]
[313153778,1706823055467,-416.91,0.00039726,2]
[313153779,1706823055478,-416.91,0.00039726,2]
[313153780,1706823055487,-416.91,0.00039726,2]
[313153781,1706823055496,-416.91,0.00039726,2]
[313153782,1706823055505,-416.91,0.00039726,2]
[313153783,1706823055514,-396.7,0.00039726,2]
[313153784,1706823055524,-155.0,0.00039727,2]
[313153785,1706823055532,-153.55670088,0.00039769,5]
[313153786,1706823055541,-1000.0,0.00039917,10]
[313153787,1706823055550,-1000.0,0.00039917,10]
[313153788,1706823055559,-150.0,0.00039942,2]
[313153789,1706823055568,-210834.9075556,0.00039973,2]
[313153790,1706823055577,-150.0,0.00039999,2]
[313153791,1706823055586,-150.0,0.00039999,2]
[313153792,1706823055595,-100000.0,0.0004,20]
[313153793,1706823055604,-155.0,0.0004,2]
[313153794,1706823055612,-961.41142117,0.0004,2]
[313153795,1706823055621,-1233.45264282,0.0004,30]
[313153796,1706823055630,-7532.41841045,0.0004,4]
[313153797,1706823055639,-5000.0,0.0004,30]
[313153798,1706823055649,-1086.42022373,0.0004,10]
[313153799,1706823055658,-20800.59524066,0.0004,15]
[313153800,1706823055667,-5012.07960909,0.0004,21]
[313153801,1706823055676,-5000.0,0.0004,30]
[313153802,1706823055685,-1086.36976472,0.0004,4]
[313153803,1706823055694,-350.2718683,0.0004,4]
[313153804,1706823055704,-72867.95281422,0.0004,4]
[313153805,1706823055713,-32342.0,0.0004,4]
[313153806,1706823055722,-2723.2457715,0.0004,4]
[313153807,1706823055731,-286.43434211,0.0004,4]
[313153808,1706823055740,-571.93665316,0.0004,4]
[313153809,1706823055750,-2297.12580316,0.0004,4]
[313153810,1706823055758,-8671.36670937,0.0004,7]
[313153811,1706823055768,-300.0,0.0004,2]
[313153812,1706823055776,-255.9246001,0.0004,4]
[313153813,1706823055785,-1000.0,0.0004,9]
[313153814,1706823055794,-622.0,0.0004,7]
[313153815,1706823055803,-13260.18174787,0.0004,12]
[313153816,1706823055812,-12002.86218667,0.0004,7]
[313153817,1706823055821,-6000.0,0.0004,10]
[313153818,1706823055830,-22147.69241677,0.0004,4]
[313153819,1706823055839,-3200.0,0.0004,4]
[313153820,1706823055848,-1114.3863784,0.0004,2]
[313153821,1706823055857,-109888.28028099,0.0004,2]
[313153822,1706823055866,-180.70049301,0.0004,2]
[313153823,1706823055875,-237.89961727,0.0004,2]
[313153824,1706823055884,-1020.0,0.0004,9]
[313153825,1706823055893,-3244.07664967,0.0004,30]
[313153826,1706823055904,-210.79278987,0.0004,2]
[313153827,1706823055913,-2209.36323079,0.0004,30]
[313153828,1706823055923,-255.0,0.0004,12]
[313153829,1706823055932,-255.0,0.0004,12]
[313153830,1706823055943,-255.0,0.0004,12]
[313153831,1706823055953,-255.0,0.0004,12]
[313153832,1706823055962,-255.0,0.0004,12]
[313153833,1706823055971,-1044.4885598,0.0004,2]
[313153834,1706823055982,-255.0,0.0004,12]
[313153835,1706823055991,-3206.2412171,0.0004,30]
[313153836,1706823056000,-255.0,0.0004,12]
[313153837,1706823056011,-1896.13746,0.0004,41]
[313153838,1706823056021,-1000.0,0.0004,2]
[313153839,1706823056030,-237.0,0.0004,2]
[313153840,1706823056039,-150.0,0.0004,2]
[313153841,1706823056048,-2047.72134219,0.00040268,5]
[313153842,1706823056058,-159.22081315,0.000403,4]
[313153843,1706823056067,-9357.88,0.000403,7]
[313153844,1706823056076,-340.880355,0.00040382,2]
[313153845,1706823056085,-167.84976,0.00040382,2]
[313153846,1706823056094,-603.762502,0.00040382,2]
[313153847,1706823056104,-176.99273,0.00040382,2]
[313153848,1706823056113,-177.272549,0.00040382,2]
[313153849,1706823056123,-1492.721981,0.00040382,2]
[313153850,1706823056132,-2279.061557,0.00040382,2]
[313153851,1706823056141,-339.986801,0.00040382,2]
[313153852,1706823056150,-500.0,0.00040418,2]
[313153853,1706823056160,-150.0,0.00040519,2]
[313153854,1706823056169,-430.94,0.00040529,2]
[313153855,1706823056178,-154.13,0.00040548,2]
[313153856,1706823056188,-150.0,0.00040548,2]
[313153857,1706823056197,-150.0,0.00040548,2]
[313153858,1706823056206,-153.55670088,0.00040612,9]
[313153859,1706823056215,-163.18,0.00040685,2]
[313153860,1706823056224,-1000.0,0.00040733,2]
[313153861,1706823056233,-293.97874813,0.00040867,6]
[313153862,1706823056242,-3198.11374601,0.00040867,6]
[313153863,1706823056252,-297.51850422,0.00040867,6]
[313153864,1706823056260,-1000.0,0.00040867,10]
[313153865,1706823056269,-1000.0,0.00040867,10]
[313153866,1706823056279,-756.41315273,0.00040867,6]
[313153867,1706823056288,-1811.24402051,0.00040867,6]
[313153868,1706823056407,-340.880355,0.00040886,2]
[313153869,1706823056417,-603.762502,0.00040886,2]
[313153870,1706823056426,-1492.721981,0.00040886,2]
[313153871,1706823056435,-2279.061557,0.00040886,2]
[313153872,1706823056444,-339.986801,0.00040886,2]
[313153873,1706823056453,-10000.0,0.00040888,2]
[313153874,1706823056462,-9380.34,0.000409,7]
[313153875,1706823056471,-100000.0,0.00041,21]
[313153876,1706823056480,-2207.57,0.00041,20]
[313153877,1706823056489,-1000.0,0.00041,30]
[313153878,1706823056498,-62428.70140636,0.00041,4]
[313153879,1706823056507,-800.0,0.00041,2]
[313153880,1706823056515,-1650.0,0.00041,3]
[313153881,1706823056524,-1044.4885598,0.00041,2]
[313153882,1706823056533,-238.24808012,0.00041096,2]
[313153883,1706823056542,-151.0,0.00041096,14]
[313153884,1706823056550,-151.0,0.00041096,14]
[313153885,1706823056559,-151.0,0.00041096,14]
[313153886,1706823056569,-151.0,0.00041096,14]
[313153887,1706823056578,-151.0,0.00041096,14]
[313153888,1706823056586,-151.0,0.00041096,14]
[313153889,1706823056595,-151.0,0.00041096,7]
[313153890,1706823056604,-151.0,0.00041096,7]
[313153891,1706823056613,-151.0,0.00041096,7]
[313153892,1706823056622,-151.0,0.00041096,7]
[313153893,1706823056632,-151.0,0.00041096,7]
[313153894,1706823056642,-151.0,0.00041096,7]
[313153895,1706823056653,-181.0,0.00041096,2]
[313153896,1706823056662,-6847.49,0.00041096,2]
[313153897,1706823056671,-1000.0,0.00041096,2]
[313153898,1706823056680,-175.641216,0.00041096,14]
[313153899,1706823056691,-1000.0,0.00041096,2]
[313153900,1706823056700,-175.641216,0.00041096,14]
[313153901,1706823056710,-1000.0,0.00041096,2]
[313153902,1706823056719,-175.641216,0.00041096,14]
[313153903,1706823056728,-1000.0,0.00041096,2]
[313153904,1706823056737,-1000.0,0.00041096,2]
[313153905,1706823056746,-1000.0,0.00041096,2]
[313153906,1706823056755,-1000.0,0.00041096,2]
[313153907,1706823056765,-1000.0,0.00041096,2]
[313153908,1706823056774,-679.774114,0.00041096,2]
[313153909,1706823056783,-175.641216,0.00041096,14]
[313153910,1706823056792,-175.641216,0.00041096,14]
[313153911,1706823056801,-175.641216,0.00041096,14]
[313153912,1706823056811,-194.101502,0.00041096,14]
[313153913,1706823056820,-151.0,0.00041096,2]
[313153914,1706823056829,-151.0,0.00041096,2]
[313153915,1706823056838,-151.0,0.00041096,2]
[313153916,1706823056847,-151.0,0.00041096,14]
[313153917,1706823056856,-152.706284,0.00041096,14]
[313153918,1706823056865,-684.26,0.00041096,2]
[313153919,1706823056874,-158.128899,0.00041096,14]
[313153920,1706823056883,-158.128899,0.00041096,14]
[313153921,1706823056893,-158.128899,0.00041096,14]
[313153922,1706823056902,-158.128899,0.00041096,14]
[313153923,1706823056911,-158.128899,0.00041096,14]
[313153924,1706823056921,-158.128899,0.00041096,14]
[313153925,1706823056931,-150.0,0.00041096,2]
[313153926,1706823056942,-500.0,0.00041096,2]
[313153927,1706823056951,-500.0,0.00041096,2]
[313153928,1706823056960,-500.0,0.00041096,2]